[Event "SixDays Budapest January IM-A 2025"]
[Site "Budapest"]
[Date "2025.01.30"]
[Round "8.5"]
[White "Pribelszky, Bence Daniel"]
[Black "Chubakov, Sultan"]
[Result "1-0"]
[Annotator "TA"]
[ECO "B40"]
[WhiteElo "2391"]
[BlackElo "2237"]
[PlyCount "49"]
[EventDate "2025.01.24"]
[EventType "tourn"]
[EventCountry "HUN"]
[SourceTitle "playchess.com"]
[Source "ChessBase"]
[SourceQuality "1"]
[TimeControl "5400+30"]

{[%evp 9,49,21,27,22,29,27,43,46,43,45,58,60,52,57,75,75,106,94,101,85,94,103,152,121,137,129,116,92,270,269,259,267,406,385,437,421,434,412,524,520,489,485]} 1. e4 {[%emt 0:04:13]} c5 {[%emt 0:00:01]} 2. Nf3 {[%emt 0:00:08]} e6 {[%emt 0:00:04]} 3. d3 {[%emt 0:00:18]} Nc6 {[%emt 0:01:57]} 4. g3 {[%emt 0:00:09]} a6 {[%emt 0:02:21]} 5. Bg2 {[%emt 0:00:29]} d6 {[%emt 0:01:37]} 6. O-O {[%emt 0:00:12]} g6 {[%emt 0:04:23]} 7. c3 {[%emt 0:05:23]} Bg7 {[%emt 0:07:36]} 8. d4 {[%emt 0:01:18] White is slightly better.} cxd4 {[%emt 0:05:15]} 9. cxd4 {[%emt 0:00:06]} Nf6 {[%emt 0:02:36]} 10. Nc3 {[%emt 0:01:48]} O-O {[%emt 0:03:43]} 11. Bf4 {[%emt 0:09:53]} d5 {[%emt 0:04:23]} 12. e5 {[%emt 0:03:35]} Nd7 {[%emt 0:00:56]} 13. Re1 {[%emt 0:03:43]} b5 {[%emt 0:06:07]} 14. Rc1 {[%emt 0:02:02][%cal Oc3d5] Threatens to win with Nxd5!} Qb6 {[%emt 0:01:56]} 15. h4 {[%emt 0:03:22]} h5 {[%emt 0:05:05]} (15... Bb7 $142 16. Bh3 Ne7) 16. Be3 {[%emt 0:02:58]} Ne7 {[%emt 0:06:07]} 17. Bh3 {[%emt 0:04:02] White is more active.} Bb7 {[%emt 0:02:22]} 18. Ng5 {[%emt 0:01:57] And now Ne2 would win.} Nf5 $2 {[%emt 0:02:56] Loses the game.} (18... Rac8 $16 19. Ne2 Rxc1 20. Nxc1 (20. Qxc1 Rc8 $16) (20. Bxc1 Re8 $16) 20... Nf5) 19. Bxf5 $18 {[%emt 0:13:19]} exf5 {[%emt 0:00:06][%cal Be6f5,Bf5f4][%mdl 32] [#]} 20. Qb3 $1 {[%emt 0:00:28]} Nxe5 {[%emt 0:17:05]} (20... Rad8 $142 21. Nxd5 Bxd5 22. Qxd5 Nxe5 23. dxe5 Qxe3 24. Qxf7+ Rxf7 25. Rxe3 Re7) 21. dxe5 {[%emt 0:00:24][%cal Bd4e5,Be5e6,Be6f7][%mdl 32]} d4 {[%emt 0:00:11] [#]} 22. Bxd4 {[%emt 0:06:19][%mdl 512]} Qxd4 {[%emt 0:00:09]} 23. e6 {[%emt 0:00:18]} f4 {[%emt 0:04:15]} 24. exf7+ {[%emt 0:06:21]} Kh8 {[%emt 0:00:03]} 25. Ne2 {[%emt 0:00:37][%csl LRd4,LRf4] Weighted Error Value: White=0.05 (flawless) /Black=0.42.  Loses game:     	---       	Black=1      Mistake:       	---       	Black=2      Inaccurate:     	---       	Black=1      OK:         	White=9     	Black=4      Best:        	White=1     	Black=2      Strong:       	White=1     	---        Brilliant:      	White=1     	---} 1-0